bitfinex/quotes_SOLUSD_20240814
["timestamp","ask_amount","ask_price","bid_price","bid_amount"]
[1723606704489,7.11768,145.63,145.58,6.8687]
[1723606705195,19.5572,145.62,145.58,6.8687]
[1723606705392,12.69,145.62,145.53,18.7063]
[1723606705700,12.69,145.62,145.54,20.0]
[1723606706467,0.12549,145.63,145.54,20.0]
[1723606706661,45.25098,145.63,145.54,20.0]
[1723606706868,52.11808,145.63,145.59,6.8685]
[1723606707172,12.94098,145.64,145.56,16.2596]
[1723606707173,0.12549,145.64,145.56,16.2596]
[1723606707380,12.81549,145.65,145.56,16.2596]
[1723606707577,0.12549,145.64,145.6,6.868]
[1723606708294,51.99169,145.64,145.59,6.8685]
[1723606711883,12.69,145.63,145.59,6.8685]
[1723606715001,19.5567,145.63,145.59,6.8685]
[1723606716901,19.5567,145.63,145.58,6.8689]
[1723606719313,6.8667,145.63,145.58,6.8689]
[1723606719809,19.5567,145.63,145.58,6.8689]
[1723606720385,15.7148,145.67,145.58,6.1317]
[1723606720623,28.4048,145.67,145.58,6.1317]
[1723606720784,19.556,145.65,145.6,6.8677]
[1723606725027,19.556,145.65,145.61,6.8675]
[1723606725189,12.69,145.65,145.61,6.8675]
[1723606726804,19.5569,145.63,145.58,6.1317]
[1723606727018,12.69,145.63,145.58,6.1317]
[1723606727409,52.11638,145.66,145.58,6.1317]
[1723606727605,12.69,145.64,145.58,6.1317]
[1723606728828,12.69,145.64,145.6,6.868]
[1723606730135,19.5562,145.64,145.6,6.868]
[1723606735233,12.69,145.62,145.6,6.868]
[1723606740241,12.69,145.62,145.61,6.8676]
[1723606740539,6.99089,145.66,145.58,6.1317]
[1723606740838,45.0,145.65,145.62,6.8671]
[1723606741041,12.69,145.64,145.6,6.868]
[1723606750397,12.69,145.64,145.61,6.8676]
[1723606753098,45.0,145.65,145.58,6.1317]
[1723606753395,12.69,145.65,145.58,6.1317]
[1723606756170,19.5558,145.65,145.58,6.1317]
[1723606756493,12.69,145.63,145.58,6.1317]
[1723606757360,12.69,145.63,145.59,6.8682]
[1723606757895,12.69,145.63,145.6,6.8681]
[1723606761992,12.69,145.63,145.61,6.8675]
[1723606764293,12.69,145.63,145.58,6.1317]
[1723606764796,12.69,145.63,145.6,6.8677]
[1723606765102,12.69,145.63,145.6,6.868]
[1723606767575,6.8662,145.65,145.6,6.868]
[1723606767776,57.69,145.64,145.6,6.868]
[1723606768391,45.0,145.64,145.6,6.868]
[1723606768704,12.69,145.64,145.61,6.8673]
[1723606768908,12.69,145.64,145.62,6.8671]
[1723606770508,12.69,145.64,145.58,6.1317]
[1723606776005,12.69,145.64,145.61,6.8675]
[1723606778699,12.69,145.64,145.6,6.868]
[1723606779001,12.69,145.64,145.58,13.0003]
[1723606779202,6.8667,145.63,145.58,13.0003]
[1723606779401,6.8667,145.63,145.59,6.8685]
[1723606780516,19.5563,145.64,145.59,6.8685]
[1723606781015,45.0,145.63,145.59,6.8685]
[1723606784321,45.0,145.63,145.58,6.1317]
[1723606784322,45.0,145.63,145.6,6.868]
[1723606786819,1.71705448,145.62,145.6,6.868]
[1723606787026,45.0,145.63,145.6,6.868]
[1723606788238,57.69,145.63,145.6,6.868]
[1723606791301,12.69,145.63,145.6,6.868]
[1723606791732,0.12549,145.64,145.6,6.868]
[1723606791919,45.12549,145.64,145.61,6.8676]
[1723606792121,16.2444,145.66,145.62,6.867]
[1723606792334,12.69,145.65,145.62,6.867]
[1723606793634,12.69,145.65,145.58,6.1317]
[1723606793837,45.0,145.64,145.58,6.1317]
[1723606794633,12.69,145.65,145.58,6.1317]
[1723606794940,45.0,145.64,145.58,6.1317]
[1723606796845,12.69,145.63,145.58,6.1317]
[1723606797638,12.69,145.63,145.59,6.8682]
[1723606798432,12.69,145.63,145.6,6.868]
[1723606798633,12.69,145.63,145.61,6.8676]
[1723606801036,12.69,145.63,145.58,6.1317]
[1723606801235,1.71707384,145.62,145.58,6.1317]
[1723606801634,12.69,145.63,145.58,6.1317]
[1723606801945,12.69,145.63,145.6,6.868]
[1723606802821,12.69,145.63,145.58,6.1317]
[1723606802822,12.69,145.63,145.61,6.8676]
[1723606803050,28.74375253,145.66,145.58,6.1317]
[1723606803051,12.69,145.65,145.62,6.8671]
[1723606805254,12.69,145.65,145.59,1.25435081]
[1723606805427,19.5557,145.65,145.58,6.1317]
[1723606807357,6.8654,145.66,145.58,6.1317]
[1723606807653,19.5534,145.7,145.6,12.81549]
[1723606807954,19.5534,145.7,145.61,21.25303946]
[1723606808151,12.69,145.68,145.61,20.0]
[1723606808525,19.5543,145.68,145.61,20.0]
[1723606808730,19.5543,145.68,145.6,20.0]
[1723606809328,12.69,145.68,145.6,32.69]
[1723606811632,19.5543,145.68,145.6,20.0]
[1723606811837,45.0,145.67,145.6,20.0]
[1723606812362,45.0,145.67,145.61,1.25274662]
[1723606812548,45.0,145.67,145.6,20.0]
[1723606812851,12.69,145.66,145.6,20.0]
[1723606813229,12.69,145.64,145.58,6.1317]
[1723606813765,45.0,145.63,145.6,6.8681]
[1723606814763,12.69,145.64,145.6,6.8681]
[1723606816652,19.5564,145.64,145.59,6.8685]
[1723606816859,45.0,145.63,145.59,6.8685]
[1723606817234,12.69,145.62,145.6,6.8681]
[1723606820455,12.69,145.62,145.59,6.8684]
[1723606821034,12.69,145.62,145.58,6.869]
[1723606822527,12.69,145.6,145.55,15.3289]
[1723606822732,1.71733196,145.59,145.57,6.8692]
[1723606825469,12.69,145.6,145.57,6.8692]
[1723606829093,12.69,145.6,145.56,6.8699]
[1723606829808,1.71740018,145.59,145.56,6.8699]
[1723606833714,12.69,145.6,145.56,6.8699]
[1723606836916,6.8677,145.61,145.56,6.8699]
[1723606837099,45.0,145.6,145.56,6.8699]
[1723606837300,0.12549,145.61,145.57,6.8694]
[1723606837511,0.25098,145.61,145.57,6.8694]
[1723606837819,45.25098,145.61,145.57,6.8694]
[1723606838921,12.69,145.6,145.54,6.4198]
[1723606839789,12.69,145.6,145.56,6.8699]
[1723606839991,45.25098,145.61,145.57,6.8693]
[1723606840288,45.12549,145.61,145.57,6.8693]
[1723606840796,6.8672,145.62,145.57,6.8693]
[1723606840995,19.68219,145.63,145.59,6.8684]
[1723606841292,45.0,145.62,145.58,6.8689]
[1723606843009,19.68219,145.63,145.59,6.8685]
[1723606843212,6.99179,145.64,145.6,6.868]
[1723606843525,6.8663,145.64,145.59,6.8685]
[1723606843697,12.69,145.65,145.59,6.8685]
[1723606843698,51.8668,145.63,145.59,6.8685]
[1723606847607,6.8668,145.63,145.59,6.8685]
[1723606847812,6.8661,145.65,145.6,6.868]
[1723606848019,19.47590671,145.68,145.61,1.25388747]
[1723606848333,12.69,145.68,145.61,1.25388747]
[1723606848895,6.8651,145.67,145.61,1.25388747]
[1723606849100,6.8651,145.67,145.62,1.25363505]
[1723606849312,6.8651,145.67,145.6,1.253552]
[1723606849517,6.8651,145.67,145.59,12.69]
[1723606849994,6.8651,145.67,145.6,1.25322763]
[1723606850199,12.69,145.68,145.61,16.68654156]
[1723606850598,19.5545,145.68,145.61,16.68654156]
[1723606850833,19.5545,145.68,145.61,15.4334]
[1723606851324,6.8645,145.68,145.62,1.25264244]
[1723606851524,6.864,145.69,145.63,1.25255642]
[1723606851728,6.8634,145.7,145.63,7.30625642]
[1723606851914,12.69,145.71,145.63,7.30625642]
[1723606852506,19.5533,145.71,145.63,7.30625642]
[1723606853113,6.8624,145.72,145.63,19.99625642]
[1723606853428,6.8625,145.72,145.64,20.12549]
[1723606854001,6.8629,145.71,145.64,20.12549]
[1723606854635,6.8625,145.72,145.64,20.0]
[1723606854815,6.8625,145.72,145.65,1.25212332]
[1723606855021,6.8625,145.72,145.66,15.7487]
[1723606855835,12.69,145.71,145.66,15.7487]
[1723606857327,12.69,145.69,145.64,20.0]
[1723606858104,8.5797,145.7,145.62,16.3206]
[1723606858105,12.69,145.65,145.62,16.3206]
[1723606858310,19.5558,145.65,145.59,6.1622]
[1723606858633,12.69,145.65,145.59,6.1622]
[1723606860113,19.5558,145.65,145.6,6.8677]
[1723606860844,12.69,145.65,145.61,6.8675]
[1723606862513,6.8672,145.62,145.55,6.3502]
[1723606862715,12.69,145.6,145.55,6.3502]
[1723606862950,12.69,145.6,145.58,6.869]
[1723606863952,12.69,145.6,145.57,6.8694]
[1723606864149,12.69,145.6,145.56,6.8697]
[1723606865559,12.69,145.58,145.56,6.8697]
[1723606865927,12.69,145.58,145.57,6.8695]
[1723606866539,12.69,145.6,145.57,6.8695]
[1723606867945,12.69,145.6,145.58,6.8689]
[1723606870055,12.69,145.6,145.57,6.8694]
[1723606876273,12.69,145.6,145.56,6.8699]
[1723606878278,12.69,145.58,145.55,6.8703]
[1723606893988,0.12549,145.57,145.54,6.8708]
[1723606894190,45.12549,145.57,145.54,6.8708]
[1723606896103,45.12549,145.57,145.55,6.8704]
[1723606897715,12.69,145.58,145.55,6.8704]
[1723606902206,0.12549,145.59,145.56,6.8699]
[1723606902411,45.50196,145.59,145.56,6.8699]
[1723606906417,45.37647,145.59,145.56,6.8699]
[1723606906613,45.25098,145.59,145.56,6.8699]
[1723606910426,6.871,145.54,145.51,6.272]
[1723606910629,12.69,145.55,145.52,6.8718]
[1723606911115,12.81549,145.58,145.51,6.272]
[1723606911421,45.37647,145.57,145.54,6.8705]
[1723606913910,45.37647,145.57,145.53,6.8713]
[1723606914112,45.37647,145.57,145.54,6.8709]
[1723606917925,0.12549,145.56,145.52,6.8714]
[1723606918134,0.12549,145.56,145.51,6.272]
[1723606918135,12.81549,145.56,145.51,6.272]
[1723606918335,45.0,145.55,145.51,6.272]
[1723606918825,45.0,145.55,145.53,6.871]
[1723606919410,12.81549,145.56,145.54,6.8707]
[1723606920323,0.25098,145.57,145.51,6.272]
[1723606920501,13.2602,145.61,145.51,6.272]
[1723606920696,12.69,145.6,145.56,6.8699]
[1723606920922,19.5581,145.6,145.55,6.8704]
[1723606921302,12.69,145.58,145.55,6.8704]
[1723606921504,13.2599,145.61,145.56,6.8698]
[1723606921731,12.69,145.59,145.56,6.8698]
[1723606922031,45.37647,145.58,145.55,6.8703]
[1723606922816,45.37647,145.58,145.56,6.8699]
[1723606923814,45.37647,145.58,145.55,6.8703]
[1723606924923,45.37647,145.58,145.54,6.8708]
[1723606928153,45.37647,145.58,145.55,6.8703]
[1723606928314,45.0,145.57,145.55,6.8703]
[1723606928514,0.37647,145.58,145.55,6.8703]
[1723606929442,0.37647,145.58,145.51,6.272]
[1723606929744,13.06647,145.58,145.51,6.272]
[1723606929950,45.0,145.57,145.51,6.272]
[1723606931341,12.81549,145.58,145.55,6.8704]
[1723606931950,12.81549,145.58,145.51,6.272]
[1723606932252,45.0,145.57,145.51,6.272]
[1723606933950,45.0,145.57,145.54,6.8705]
[1723606934158,45.0,145.57,145.55,6.8704]
[1723606935349,0.25098,145.59,145.55,6.8704]
[1723606935559,0.12549,145.58,145.55,6.8704]
[1723606936841,0.12549,145.58,145.56,6.8699]
[1723606937554,0.12549,145.58,145.55,6.8703]
[1723606942355,12.81549,145.58,145.51,6.272]
[1723606942530,45.0,145.57,145.51,6.272]
[1723606944854,45.0,145.57,145.54,6.8709]
[1723606945662,45.0,145.57,145.55,6.8704]
[1723606946244,45.0,145.57,145.51,6.272]
[1723606946245,45.0,145.57,145.54,6.8708]
[1723606948474,0.12549,145.56,145.53,6.8714]
[1723606949044,0.12549,145.56,145.54,6.8709]
[1723606954068,12.81549,145.56,145.48,5.83511154]
[1723606954268,0.12549,145.54,145.49,20.0]
[1723606954484,0.12549,145.56,145.54,6.8709]
[1723606954652,45.25098,145.56,145.49,20.0]
[1723606954975,45.25098,145.56,145.48,20.0]
[1723606955165,45.25098,145.56,145.49,12.69]
[1723606955348,45.25098,145.56,145.5,20.0]
[1723606955678,6.8682,145.6,145.5,20.0]
[1723606955978,0.12549,145.58,145.5,20.0]
[1723606956161,0.25098,145.58,145.5,20.0]
[1723606956472,0.25098,145.58,145.55,6.8704]
[1723606956797,0.12549,145.58,145.55,6.8704]
[1723606956977,0.12549,145.57,145.55,6.8704]
[1723606958174,0.12549,145.57,145.54,6.8708]
[1723606958383,0.37647,145.57,145.54,6.8708]
[1723606964099,0.12549,145.57,145.54,6.8708]
[1723606964396,0.50196,145.58,145.55,6.8704]
[1723606968180,0.37647,145.58,145.55,6.8704]
[1723606968396,0.12549,145.58,145.55,6.8704]
[1723606973415,12.69,145.59,145.56,6.8699]
[1723606973707,2.69365894,145.61,145.57,6.8691]
[1723606973999,19.5573,145.62,145.57,6.8691]
[1723606974799,45.12549,145.61,145.57,6.8691]
[1723606975307,12.69,145.6,145.51,12.69]
[1723606975486,12.69,145.6,145.55,6.8701]
[1723606975487,19.5583,145.6,145.55,6.8701]
[1723606976498,12.69,145.6,145.56,6.8699]
[1723606977599,45.12549,145.59,145.56,6.8699]
[1723606979726,0.25098,145.61,145.57,6.8693]
[1723606979909,0.12549,145.6,145.57,6.8693]
[1723606980217,45.12549,145.6,145.56,6.8699]
[1723606982012,51.99359,145.6,145.56,6.8699]
[1723606982420,12.69,145.59,145.55,22.8744]
[1723606982613,12.69,145.59,145.55,16.3045]
[1723606984512,12.69,145.59,145.52,22.847]
[1723606984818,12.69,145.59,145.53,20.0]
[1723606985021,12.69,145.57,145.53,20.0]
[1723606985196,12.69,145.57,145.52,22.847]
[1723606985825,12.69,145.57,145.55,6.87]
[1723606986631,12.69,145.57,145.54,6.8708]
[1723606988109,12.69,145.57,145.55,6.8704]
[1723606991228,12.69,145.57,145.52,22.847]
[1723606991229,45.0,145.6,145.56,6.8697]
[1723606991422,2.67270877,145.62,145.58,6.8689]
[1723606991736,19.5573,145.62,145.57,6.8694]
[1723606992099,12.69,145.6,145.57,6.8694]
[1723606992633,0.12549,145.59,145.56,6.8699]
[1723606992806,45.12549,145.59,145.56,6.8699]
[1723606994534,45.12549,145.59,145.55,6.8703]
[1723606997727,51.99409,145.59,145.55,6.8703]
[1723607004051,45.12549,145.59,145.56,6.87]
[1723607004224,12.69,145.6,145.56,6.87]
[1723607006637,19.5583,145.6,145.55,6.8704]
[1723607009037,52.37056,145.59,145.55,6.8704]
[1723607009240,52.11958,145.59,145.55,6.8704]
[1723607009546,45.25098,145.59,145.55,6.8704]
[1723607009737,45.12549,145.59,145.55,6.8704]
[1723607012658,22.27203843,145.62,145.57,6.8695]
[1723607012859,6.8678,145.61,145.57,6.8695]
[1723607013038,6.8678,145.61,145.56,6.8699]
[1723607013671,0.12549,145.6,145.56,6.8699]
[1723607013877,57.81549,145.6,145.56,6.8699]
[1723607014060,64.68369,145.6,145.55,6.8703]
[1723607017093,64.68369,145.6,145.56,6.8699]
[1723607017980,0.12549,145.58,145.52,22.847]
[1723607018167,45.12549,145.58,145.55,6.8703]
[1723607018356,0.12549,145.58,145.55,6.8703]
[1723607019194,6.8667,145.63,145.53,20.0]
[1723607019358,32.37746179,145.64,145.54,12.69]
[1723607019562,12.37746179,145.64,145.62,6.8669]
[1723607019864,6.8648,145.68,145.63,6.8665]
[1723607020076,12.69,145.67,145.62,6.8671]
[1723607020279,6.8649,145.67,145.62,6.8671]
[1723607020460,19.5549,145.67,145.62,6.8671]
[1723607020867,12.69,145.65,145.57,21.7673]
[1723607021072,12.69,145.65,145.58,20.0]
[1723607024431,12.69,145.65,145.59,1.25350348]
[1723607024900,12.69,145.65,145.58,20.0]
[1723607025085,12.69,145.66,145.58,20.0]
[1723607025907,19.5554,145.66,145.58,20.0]
[1723607026110,12.69,145.64,145.58,20.0]
[1723607026781,12.69,145.67,145.58,32.69]
[1723607027709,19.5548,145.67,145.58,32.69]
[1723607028598,19.5548,145.67,145.58,20.0]
[1723607030729,12.69,145.65,145.58,20.0]
[1723607033036,12.69,145.67,145.59,21.7689]
[1723607033695,12.69,145.67,145.6,20.0]
[1723607035329,12.69,145.67,145.61,0.44792299]
[1723607036614,12.69,145.67,145.6,20.0]
[1723607037020,12.69,145.67,145.61,0.44857388]
[1723607037613,12.69,145.67,145.62,15.2131]
[1723607039316,12.69,145.67,145.63,0.88216504]
[1723607039637,12.69,145.67,145.62,15.2131]
[1723607040358,42.23853357,145.78,145.66,35.3673]
[1723607040522,49.3189,145.81,145.67,65.50196]
[1723607040523,12.69,145.77,145.67,65.50196]
[1723607041011,12.69,145.77,145.68,1.25067959]
[1723607041211,12.69,145.77,145.69,0.12549]
[1723607041642,12.69,145.77,145.7,1.25068346]
[1723607041942,12.69,145.77,145.73,6.8619]
[1723607042816,6.862,145.73,145.67,20.0]
[1723607043014,6.862,145.73,145.53,27.52]
[1723607043015,12.69,145.71,145.68,6.5466]
[1723607043251,19.5533,145.71,145.68,6.5466]
[1723607043450,12.69,145.69,145.66,16.3507]
[1723607043633,12.69,145.67,145.64,6.5466]
[1723607043949,12.69,145.65,145.64,6.5466]
[1723607044725,12.69,145.65,145.64,13.4128]
[1723607045221,12.69,145.65,145.64,6.5466]
[1723607046538,6.8638,145.7,145.65,6.8655]
[1723607046854,6.8625,145.72,145.67,6.8647]
[1723607047033,12.69,145.68,145.66,6.8651]
[1723607048451,12.69,145.68,145.65,0.4257794]
[1723607048656,12.69,145.68,145.67,6.8648]
[1723607048845,12.69,145.7,145.65,0.60487828]
[1723607049162,12.69,145.7,145.67,6.8647]
[1723607049526,6.8625,145.72,145.67,6.8647]
[1723607049727,12.69,145.71,145.67,6.8647]
[1723607050421,19.5529,145.71,145.67,6.8647]
[1723607052062,12.69,145.69,145.66,6.8652]
[1723607052269,12.69,145.69,145.65,6.8656]
[1723607053684,12.69,145.69,145.66,6.8651]
[1723607054585,12.69,145.71,145.64,6.5466]
[1723607054757,12.69,145.71,145.68,6.8642]
[1723607055394,12.69,145.71,145.67,6.8647]
[1723607055987,12.69,145.71,145.65,0.12549]
[1723607055988,12.69,145.71,145.69,6.8638]
[1723607056181,6.8615,145.74,145.69,6.8638]
[1723607056369,12.69,145.71,145.68,6.8642]
[1723607056704,12.69,145.71,145.67,6.8647]
[1723607059985,12.69,145.71,145.68,6.8642]
[1723607061797,12.69,145.71,145.67,6.8648]
[1723607062862,19.553,145.71,145.67,6.8648]
[1723607063596,19.553,145.71,145.66,6.8651]
[1723607063766,19.553,145.71,145.67,6.8647]
[1723607064094,12.69,145.71,145.67,6.8647]
[1723607064594,6.8624,145.72,145.68,6.8642]
[1723607064895,12.69,145.71,145.68,6.8642]
[1723607068297,12.69,145.71,145.64,6.5466]
[1723607068498,12.69,145.71,145.65,20.0]
[1723607068880,19.5532,145.71,145.66,6.8649]
[1723607069296,12.69,145.69,145.66,6.8649]
[1723607069495,12.69,145.69,145.67,6.8646]
[1723607070596,12.69,145.69,145.68,6.8643]
[1723607070805,12.69,145.71,145.68,6.8643]
[1723607071190,12.69,145.72,145.71,6.8629]
[1723607071394,12.69,145.76,145.68,6.6286]
[1723607071706,12.69,145.76,145.72,6.8621]
[1723607072007,19.5506,145.76,145.72,6.8621]
[1723607072577,6.861,145.75,145.71,6.8629]
[1723607072901,12.69,145.74,145.71,6.8629]
[1723607074516,12.69,145.74,145.7,6.8633]
[1723607075804,12.69,145.74,145.71,6.8627]
[1723607082706,12.69,145.74,145.68,6.6286]
[1723607084435,12.69,145.72,145.68,6.6286]
[1723607084635,12.69,145.72,145.69,6.8637]
[1723607085017,12.69,145.72,145.7,6.8633]
[1723607092123,12.69,145.72,145.69,6.8638]
[1723607093153,19.5525,145.72,145.67,15.9862]
[1723607093316,12.69,145.7,145.68,6.8642]
[1723607094148,12.69,145.7,145.69,6.8638]
[1723607095453,12.69,145.7,145.65,20.0]
[1723607096254,12.69,145.7,145.68,6.8642]
[1723607097455,12.69,145.7,145.69,6.8638]
[1723607098420,12.69,145.72,145.69,6.8638]
[1723607098724,12.69,145.72,145.69,6.8637]
[1723607100548,19.5525,145.72,145.67,6.8644]
[1723607100752,19.5525,145.72,145.68,6.8642]
[1723607101162,12.69,145.72,145.68,6.8642]
[1723607101331,19.5526,145.72,145.68,6.8642]
[1723607102046,12.69,145.72,145.68,6.8642]
[1723607102249,12.69,145.74,145.65,20.0]
[1723607102454,12.69,145.74,145.71,6.8628]
[1723607104129,12.69,145.74,145.67,15.7554]
[1723607104331,12.69,145.74,145.68,20.12549]
[1723607106069,12.69,145.74,145.68,0.12549]
[1723607106376,12.69,145.74,145.7,6.863]
[1723607106965,12.69,145.74,145.71,6.8628]
[1723607109449,12.69,145.74,145.7,6.8633]
[1723607109634,19.5515,145.74,145.7,6.8633]
[1723607109839,19.5515,145.74,145.67,35.7554]
[1723607110058,19.5515,145.74,145.69,6.8635]
[1723607110964,19.5515,145.74,145.7,6.8633]
[1723607113844,12.36537961,145.78,145.71,6.8628]
[1723607114050,34.80377961,145.79,145.74,6.8613]
[1723607114356,12.69,145.81,145.77,6.8601]
[1723607114540,19.5483,145.81,145.76,6.8604]
[1723607115546,6.8583,145.81,145.76,6.8604]
[1723607115766,19.5483,145.81,145.76,6.8604]
[1723607116160,16.2089,145.83,145.8,6.8586]
[1723607116475,12.69,145.82,145.74,12.69]
[1723607116675,12.69,145.82,145.75,65.37647]
[1723607117266,12.69,145.82,145.79,6.8587]
[1723607117474,12.69,145.82,145.75,65.37647]
[1723607117859,12.69,145.82,145.79,6.859]
[1723607118980,28.8989,145.83,145.8,6.8586]
[1723607119268,6.8563,145.86,145.75,71.49097]
[1723607119269,12.69,145.81,145.78,6.8595]
[1723607120762,12.69,145.81,145.75,26.36548]
[1723607120961,12.69,145.81,145.75,26.23999]
[1723607122442,12.69,145.81,145.75,26.1145]
[1723607122650,12.69,145.81,145.77,6.8599]
[1723607123172,12.69,145.81,145.78,6.8594]
[1723607124281,6.8568,145.84,145.79,6.859]
[1723607124573,15.1107,145.86,145.81,6.8578]
[1723607124574,12.69,145.85,145.81,6.8578]
[1723607125653,15.1107,145.86,145.82,6.8576]
[1723607125876,15.1107,145.86,145.83,6.8569]
[1723607126083,12.69,145.86,145.83,6.8569]
[1723607126380,6.855,145.88,145.83,6.8569]
[1723607126574,12.69,145.87,145.83,6.8569]
[1723607127575,6.8582,145.82,145.77,6.8601]
[1723607127903,12.69,145.81,145.77,6.8601]
[1723607128116,17.24109569,145.84,145.71,12.69]
[1723607128117,12.69,145.79,145.72,16.3445]
[1723607128795,12.69,145.79,145.77,6.8601]
[1723607129008,0.12549,145.83,145.77,6.8601]
[1723607129184,12.69,145.8,145.77,6.8601]
[1723607130498,12.69,145.8,145.76,6.8605]
[1723607130708,12.69,145.78,145.75,24.0132]
[1723607131512,12.69,145.78,145.76,6.8605]
[1723607133319,12.69,145.78,145.77,6.8601]
[1723607133493,12.69,145.8,145.77,6.8601]
[1723607135817,12.69,145.8,145.78,6.8595]
[1723607136124,12.69,145.8,145.77,6.86]
[1723607138585,45.12549,145.83,145.72,16.3445]
[1723607138821,12.69,145.81,145.78,6.8595]
[1723607139313,12.69,145.81,145.78,24.0079]
[1723607140027,12.69,145.81,145.78,17.1484]
[1723607140604,12.69,145.79,145.78,17.1484]
[1723607140812,51.98289,145.83,145.78,24.0079]
[1723607141017,12.69,145.8,145.78,24.0079]
[1723607142122,12.69,145.8,145.79,6.8591]
[1723607142504,15.77748,145.84,145.8,6.8584]
[1723607142715,32.69,145.83,145.8,6.8584]
[1723607142895,20.0,145.83,145.76,6.4355]
[1723607143101,15.7964,145.88,145.77,94.04367]
[1723607143401,12.69,145.85,145.77,81.35367]
[1723607143999,12.69,145.85,145.81,6.8578]
[1723607144199,12.69,145.85,145.77,81.35367]
[1723607144398,6.475,145.9,145.84,6.8568]
[1723607144399,6.8545,145.89,145.84,6.8568]
[1723607144602,32.69,145.88,145.84,6.8568]
[1723607144826,32.69,145.88,145.79,12.69]
[1723607144827,12.69,145.88,145.85,6.856]
[1723607145016,12.69,145.89,145.85,6.856]
[1723607145409,6.8542,145.9,145.85,6.856]
[1723607145600,19.5442,145.9,145.85,6.856]
[1723607145801,19.5442,145.9,145.86,6.8558]
[1723607146320,19.5442,145.9,145.85,6.8563]
[1723607147024,19.5449,145.88,145.82,6.4616]
[1723607147218,19.5449,145.88,145.83,6.8569]
[1723607148410,12.69,145.88,145.84,6.8565]
[1723607148917,12.69,145.88,145.85,6.8563]
[1723607149525,19.5443,145.9,145.86,6.8558]
[1723607149901,15.9376,145.92,145.87,6.855]
[1723607150102,15.9376,145.92,145.88,6.8548]
[1723607150103,12.69,145.91,145.88,6.8548]
[1723607152036,6.8526,145.93,145.88,6.8548]
[1723607152732,6.8531,145.92,145.87,6.8553]
[1723607152934,31.61,145.9,145.83,15.2592]
[1723607153235,12.35604879,145.94,145.84,20.0]
[1723607153446,6.8522,145.94,145.89,6.8544]
[1723607153941,38.4626,145.93,145.88,6.8548]
[1723607155520,31.61,145.93,145.89,6.8543]
[1723607156127,0.8312695,145.97,145.9,21.4647]
[1723607156436,7.6819695,145.97,145.92,6.8529]
[1723607156636,0.8312695,145.97,145.93,6.8525]
[1723607157735,0.8312695,145.97,145.9,21.4647]
[1723607157736,7.6821695,145.97,145.9,21.4647]
[1723607158740,6.8512,145.96,145.9,21.4647]
[1723607158914,6.8512,145.96,145.91,6.8531]
[1723607160337,7.6819695,145.97,145.92,6.853]
[1723607160716,0.8312695,145.97,145.93,0.96001653]
[1723607161229,0.8312695,145.97,145.91,20.0]